bitfinex/quotes_BTCUSD_20250910
["timestamp","ask_amount","ask_price","bid_price","bid_amount"]
[1757494321401,0.55821104,112580.0,112570.0,0.14916]
[1757494321627,0.44979419,112580.0,112570.0,0.0004]
[1757494321827,0.44979419,112580.0,112570.0,0.14916]
[1757494322313,0.44979419,112580.0,112570.0,0.0014]
[1757494322498,0.59009361,112580.0,112570.0,0.15016]
[1757494322653,0.47648676,112580.0,112570.0,0.15016]
[1757494322855,0.44979419,112580.0,112570.0,0.15016]
[1757494323543,0.44979419,112580.0,112570.0,0.15116]
[1757494324295,0.56340104,112580.0,112570.0,0.0024]
[1757494324506,0.9306939,112580.0,112570.0,0.15112]
[1757494324715,0.78979419,112580.0,112570.0,0.15112]
[1757494324928,0.76664425,112580.0,112570.0,0.15112]
[1757494325720,0.76664425,112580.0,112570.0,0.15012]
[1757494325971,0.51765144,112580.0,112570.0,0.24416599]
[1757494326181,0.74486514,112580.0,112570.0,0.24416599]
[1757494326380,0.51765144,112580.0,112570.0,0.24416599]
[1757494326560,0.74486514,112580.0,112570.0,0.24416599]
[1757494326796,0.74486514,112580.0,112570.0,0.09544599]
[1757494327014,0.75005514,112580.0,112570.0,0.24424599]
[1757494327446,0.52284144,112580.0,112570.0,0.24424599]
[1757494327661,0.75005514,112580.0,112570.0,0.24424599]
[1757494328276,0.90340615,112580.0,112570.0,0.15028]
[1757494329432,0.93069901,112580.0,112570.0,0.15028]
[1757494333060,0.81709216,112580.0,112570.0,0.15028]
[1757494333264,0.77320514,112580.0,112570.0,0.15028]
[1757494334558,0.8873925,112580.0,112570.0,0.15028]
[1757494336799,0.8873925,112580.0,112570.0,0.0014]
[1757494336974,0.8873925,112580.0,112570.0,0.15016]
[1757494337198,0.54599144,112580.0,112570.0,0.15016]
[1757494337408,0.8873925,112580.0,112570.0,0.15016]
[1757494340220,0.8642425,112580.0,112570.0,0.15016]
[1757494341999,0.8642425,112580.0,112550.0,0.57393053]
[1757494342000,0.51766722,112570.0,112550.0,0.0002]
[1757494342201,0.51908407,112560.0,112550.0,0.0002]
[1757494342402,0.52424407,112560.0,112550.0,0.12924]
[1757494342639,0.17771459,112540.0,112530.0,0.07131]
[1757494342868,0.34841512,112540.0,112530.0,0.30923599]
[1757494343069,0.34841512,112540.0,112530.0,0.31424599]
[1757494343269,0.34855334,112540.0,112530.0,0.31424599]
[1757494343433,0.17785281,112540.0,112530.0,0.31424599]
[1757494343637,0.34855334,112540.0,112530.0,0.31424599]
[1757494343842,0.34855334,112540.0,112530.0,0.31121599]
[1757494344289,0.17774617,112520.0,112510.0,0.13217805]
[1757494344501,0.16328913,112520.0,112510.0,0.21962]
[1757494344740,0.16328913,112520.0,112510.0,0.39032053]
[1757494345140,0.16328913,112520.0,112510.0,0.50293652]
[1757494346820,0.16328913,112520.0,112510.0,0.31556599]
[1757494346994,0.16328913,112520.0,112510.0,0.48626652]
[1757494347211,0.16328913,112520.0,112510.0,0.48526652]
[1757494347368,0.16328913,112520.0,112510.0,0.48626652]
[1757494347789,0.16328913,112520.0,112510.0,0.31556599]
[1757494347996,0.16328913,112520.0,112510.0,0.50393652]
[1757494348239,0.16328913,112520.0,112510.0,0.33323599]
[1757494348396,0.16328913,112520.0,112510.0,0.50593652]
[1757494348611,0.16328913,112520.0,112510.0,0.48826652]
[1757494348820,0.16328913,112520.0,112510.0,0.50593652]
[1757494351545,0.16328913,112520.0,112510.0,0.88826652]
[1757494352116,0.16328913,112520.0,112510.0,0.71756599]
[1757494352329,0.16328913,112520.0,112510.0,0.88826652]
[1757494353620,0.16328913,112520.0,112510.0,0.90593652]
[1757494355766,0.16328913,112520.0,112510.0,0.73523599]
[1757494355973,0.16328913,112520.0,112510.0,0.90593652]
[1757494357245,0.16328913,112520.0,112510.0,0.93883652]
[1757494357872,0.16328913,112520.0,112510.0,0.52116652]
[1757494358309,0.16328913,112520.0,112510.0,0.75046599]
[1757494358728,0.16328913,112520.0,112510.0,0.92116652]
[1757494359341,0.16328913,112520.0,112510.0,0.93894652]
[1757494359501,0.16328913,112520.0,112510.0,0.92116652]
[1757494360325,0.16328913,112520.0,112510.0,0.75046599]
[1757494360534,0.16328913,112520.0,112510.0,0.92116652]
[1757494360743,0.16328913,112520.0,112510.0,0.75046599]
[1757494360956,0.16328913,112520.0,112510.0,0.92116652]
[1757494361568,0.16328913,112520.0,112510.0,0.60110599]
[1757494361865,0.33398966,112520.0,112510.0,0.59807599]
[1757494362094,0.33913966,112520.0,112510.0,0.34715599]
[1757494362524,0.50984019,112520.0,112510.0,0.25326]
[1757494362723,0.53324019,112520.0,112510.0,0.25326]
[1757494363001,0.53324019,112520.0,112510.0,0.25226]
[1757494363207,0.53324019,112520.0,112510.0,0.25326]
[1757494363622,0.53324019,112520.0,112510.0,0.25226]
[1757494363823,0.53324019,112520.0,112510.0,0.25026]
[1757494364032,0.53324019,112520.0,112510.0,0.21736]
[1757494364447,0.53324019,112520.0,112510.0,0.06928]
[1757494364657,0.53324019,112520.0,112510.0,0.21832]
[1757494364959,0.53324019,112520.0,112510.0,0.21732]
[1757494365398,0.59424019,112520.0,112510.0,0.06828]
[1757494365603,0.59424019,112520.0,112510.0,0.21732]
[1757494368372,0.39498966,112520.0,112510.0,0.21941]
[1757494368983,0.39712966,112520.0,112510.0,0.21941]
[1757494369199,0.40013966,112520.0,112510.0,0.21941]
[1757494370432,0.22428913,112520.0,112510.0,0.21941]
[1757494370594,0.39712966,112520.0,112510.0,0.21941]
[1757494370789,0.40013966,112520.0,112510.0,0.21941]
[1757494373168,0.40013966,112520.0,112480.0,0.06409805]
[1757494373169,0.17779358,112490.0,112480.0,0.06409805]
[1757494373386,0.16333144,112490.0,112480.0,0.41971913]
[1757494373593,0.16333144,112490.0,112480.0,0.24679599]
[1757494373812,0.16333144,112490.0,112480.0,0.41749652]
[1757494374036,0.16333144,112490.0,112480.0,0.42634219]
[1757494374239,0.16333144,112490.0,112480.0,0.25564166]
[1757494374444,0.16333144,112490.0,112480.0,0.42331219]
[1757494374622,0.16346958,112490.0,112480.0,0.42331219]
[1757494375175,0.16346958,112490.0,112480.0,0.41446652]
[1757494375366,0.16560958,112490.0,112480.0,0.15385]
[1757494375579,0.33932011,112490.0,112480.0,0.15385]
[1757494375812,0.16346958,112490.0,112480.0,0.32255053]
[1757494375987,0.16346958,112490.0,112480.0,0.15285]
[1757494376186,0.16346958,112490.0,112480.0,0.32355053]
[1757494376392,0.16346958,112490.0,112480.0,0.15285]
[1757494376714,0.16446958,112490.0,112480.0,0.15585]
[1757494376917,0.33517011,112490.0,112480.0,0.15585]
[1757494377254,0.33731011,112490.0,112480.0,0.00629]
[1757494377467,0.34032011,112490.0,112480.0,0.15581]
[1757494377641,0.33932011,112490.0,112480.0,0.15281]
[1757494377850,0.16861958,112490.0,112480.0,0.15281]
[1757494378050,0.16861958,112490.0,112480.0,0.15181]
[1757494378051,0.33932011,112490.0,112480.0,0.15181]
[1757494378264,0.34032011,112490.0,112480.0,0.15481]
[1757494378891,0.34032011,112490.0,112480.0,0.15381]
[1757494379658,0.16961958,112490.0,112480.0,0.15481]
[1757494379859,0.16446958,112490.0,112480.0,0.32551053]
[1757494380480,0.16346958,112490.0,112480.0,0.15281]
[1757494380743,0.33932011,112490.0,112480.0,0.15281]
[1757494380951,0.33932011,112490.0,112480.0,0.15181]
[1757494381153,0.34032011,112490.0,112480.0,0.15481]
[1757494381379,0.34032011,112490.0,112480.0,0.15581]
[1757494381737,0.33932011,112490.0,112480.0,0.15281]
[1757494382530,0.33932011,112490.0,112480.0,0.15481]
[1757494382736,0.16560958,112490.0,112480.0,0.15481]
[1757494382935,0.16346958,112490.0,112480.0,0.55481]
[1757494384193,0.16346958,112490.0,112480.0,0.82045652]
[1757494384739,0.16346958,112490.0,112480.0,0.81742652]
[1757494386007,0.16346958,112490.0,112480.0,0.64672599]
[1757494386225,0.16346958,112490.0,112480.0,0.81742652]
[1757494386466,0.16346958,112490.0,112480.0,0.82045652]
[1757494388187,0.16346958,112490.0,112480.0,0.64975599]
[1757494388407,0.16346958,112490.0,112480.0,0.82045652]
[1757494388743,0.16346958,112490.0,112480.0,0.99115705]
[1757494389097,0.16346958,112490.0,112480.0,0.82045652]
[1757494390118,0.16346958,112490.0,112480.0,0.81742652]
[1757494390575,0.16346958,112490.0,112480.0,0.64672599]
[1757494390778,0.16346958,112490.0,112480.0,0.81742652]
[1757494392101,0.16346958,112490.0,112480.0,0.41742652]
[1757494394077,0.16346958,112490.0,112480.0,0.24672599]
[1757494394281,0.16346958,112490.0,112480.0,0.42045652]
[1757494394485,0.16346958,112490.0,112480.0,0.36368355]
[1757494394702,0.16346958,112490.0,112480.0,0.47761111]
[1757494394913,0.16346958,112490.0,112480.0,0.52040769]
[1757494395327,0.14900756,112490.0,112480.0,0.58430574]
[1757494395946,0.14900756,112490.0,112480.0,0.43478574]
[1757494396169,0.14900756,112490.0,112480.0,0.81711574]
[1757494396387,0.14900756,112490.0,112480.0,0.85234818]
[1757494399354,0.14900756,112490.0,112480.0,0.73842062]
[1757494399557,0.14900756,112490.0,112480.0,0.85234818]
[1757494400266,0.14900756,112490.0,112480.0,0.96627574]
[1757494400652,0.14900756,112490.0,112480.0,0.96623574]
[1757494401043,0.14900756,112490.0,112480.0,0.85226818]
[1757494403449,0.14900756,112490.0,112480.0,0.90229769]
[1757494404679,0.14900756,112490.0,112480.0,0.91996769]
[1757494405311,0.13454574,112490.0,112480.0,0.91996769]
[1757494405984,0.13454574,112490.0,112480.0,0.90229769]
[1757494407618,0.13454574,112490.0,112480.0,0.91996769]
[1757494407859,0.17793172,112490.0,112480.0,0.91996769]
[1757494408090,0.00013814,112490.0,112480.0,1.29133525]
[1757494408504,0.18665006,112510.0,112480.0,1.72038906]
[1757494408725,0.18665006,112510.0,112500.0,0.31695103]
[1757494408943,0.18665006,112510.0,112500.0,0.62614702]
[1757494409195,0.18665006,112510.0,112500.0,0.64885702]
[1757494409450,0.18665006,112510.0,112500.0,1.04885702]
[1757494412268,0.24665006,112510.0,112500.0,1.04885702]
[1757494414595,0.24665006,112510.0,112500.0,1.04985702]
[1757494414803,0.24665006,112510.0,112500.0,1.05185702]
[1757494415449,0.24665006,112510.0,112500.0,0.93792946]
[1757494415873,0.24665006,112510.0,112500.0,0.93780946]
[1757494416057,0.24665006,112510.0,112500.0,0.92013946]
[1757494416408,0.24665006,112510.0,112500.0,0.77129946]
[1757494416625,0.24665006,112510.0,112500.0,0.92013946]
[1757494417319,0.24665006,112510.0,112500.0,0.77129946]
[1757494417611,0.24665006,112510.0,112500.0,0.92009946]
[1757494429587,0.24665006,112510.0,112500.0,0.77129946]
[1757494429724,0.24665006,112510.0,112500.0,0.91993946]
[1757494432180,0.24665006,112510.0,112500.0,0.77129946]
[1757494432614,0.24665006,112510.0,112500.0,0.91985946]
[1757494435348,0.23219048,112510.0,112500.0,0.91985946]
[1757494435555,0.23219048,112510.0,112500.0,0.91981946]
[1757494436413,0.23219048,112510.0,112500.0,0.85585013]
[1757494437439,0.23219048,112510.0,112500.0,0.93581179]
[1757494438589,0.23219048,112510.0,112500.0,0.78729179]
[1757494438798,0.23219048,112510.0,112500.0,0.82184423]
[1757494439020,0.23219048,112510.0,112500.0,0.93577179]
[1757494439268,0.23219048,112510.0,112500.0,0.24319765]
[1757494439504,0.37609804,112510.0,112500.0,0.13537811]
[1757494439723,0.37609804,112510.0,112500.0,0.28385811]
[1757494439956,0.37609804,112510.0,112500.0,0.07132]
[1757494440174,0.37609804,112510.0,112500.0,0.2198]
[1757494440399,0.37609804,112510.0,112500.0,0.07132]
[1757494440635,0.37609804,112510.0,112500.0,0.21984]
[1757494440636,0.40270123,112510.0,112500.0,0.21984]
[1757494442352,0.40270123,112510.0,112500.0,0.21784]
[1757494442567,0.40270123,112510.0,112500.0,0.21684]
[1757494442762,0.40370123,112510.0,112500.0,0.21684]
[1757494443107,0.43041034,112510.0,112500.0,0.21684]
[1757494443310,0.43141034,112510.0,112500.0,0.21684]
[1757494444063,0.40480715,112510.0,112500.0,0.21684]
[1757494446826,0.40480715,112510.0,112500.0,0.2168]
[1757494447049,0.40480715,112510.0,112500.0,0.21676]
[1757494449263,0.29087959,112510.0,112500.0,0.21676]
[1757494449410,0.40480715,112510.0,112500.0,0.21676]
[1757494450019,0.40480715,112510.0,112500.0,0.20676]
[1757494456434,0.46177086,112510.0,112500.0,0.20676]
[1757494461431,0.80177086,112510.0,112500.0,1e-08]
[1757494461643,0.97266213,112510.0,112500.0,1e-08]
[1757494461854,0.63087959,112510.0,112500.0,1e-08]
[1757494462668,0.17777777,112500.0,112490.0,0.06832]
[1757494462901,0.54528031,112500.0,112490.0,0.21672]
[1757494463108,0.54733031,112500.0,112490.0,0.21672]
[1757494463556,0.57404075,112500.0,112490.0,0.21672]
[1757494464728,0.20973821,112500.0,112490.0,0.21672]
[1757494464952,0.38062948,112500.0,112490.0,0.21672]
[1757494465160,0.40314948,112500.0,112490.0,0.21672]
[1757494468756,0.57404075,112500.0,112490.0,0.21672]
[1757494469915,0.40314948,112500.0,112490.0,0.21672]
[1757494473978,0.38062948,112500.0,112490.0,0.21882]
[1757494474320,0.20973821,112500.0,112490.0,0.21882]
[1757494474544,0.37537948,112500.0,112490.0,0.21882]
[1757494475377,0.38062948,112500.0,112490.0,0.21882]
[1757494477557,0.37537948,112500.0,112490.0,0.21882]
[1757494478310,0.38062948,112500.0,112490.0,0.21882]
[1757494479021,0.20448821,112500.0,112490.0,0.38971127]
[1757494479242,0.20448821,112500.0,112490.0,0.65841127]
[1757494479604,0.37537948,112500.0,112490.0,0.48752]
[1757494479806,0.38062948,112500.0,112490.0,0.48752]
[1757494480821,0.37537948,112500.0,112490.0,0.48752]
[1757494484351,0.20448821,112500.0,112490.0,0.49048]
[1757494484577,0.20448821,112500.0,112490.0,0.66137127]
[1757494485351,0.20448821,112500.0,112490.0,0.65841127]
[1757494485508,0.37537948,112500.0,112490.0,0.48752]
[1757494487413,0.20448821,112500.0,112490.0,0.48752]
[1757494487630,0.37537948,112500.0,112490.0,0.48752]
[1757494489663,0.20448821,112500.0,112490.0,0.48752]
[1757494489966,0.37537948,112500.0,112490.0,0.48752]
[1757494490371,0.20448821,112500.0,112490.0,0.48752]
[1757494490578,0.37537948,112500.0,112490.0,0.48752]
[1757494491610,0.37735948,112500.0,112490.0,0.48752]
[1757494491834,0.17779358,112490.0,112480.0,1e-08]
[1757494492026,0.17779358,112490.0,112460.0,0.18012473]
[1757494492027,0.17782519,112470.0,112460.0,0.18012473]
[1757494492228,0.35374646,112470.0,112460.0,0.16168691]
[1757494492432,0.18285519,112470.0,112460.0,0.31008691]
[1757494492656,0.34871646,112470.0,112460.0,0.31224691]
[1757494492840,0.20454079,112470.0,112460.0,0.31224691]
[1757494493053,0.37543206,112470.0,112460.0,0.31224691]
[1757494493257,0.38046206,112470.0,112460.0,0.16168691]
[1757494493494,0.40537206,112470.0,112460.0,0.31008691]
[1757494494381,0.40537206,112470.0,112460.0,0.21817092]
[1757494494587,0.38046206,112470.0,112460.0,0.22033092]
[1757494494800,0.37543206,112470.0,112460.0,0.22033092]
[1757494495216,0.38046206,112470.0,112460.0,0.22233092]
[1757494495604,0.20957079,112470.0,112460.0,0.22033092]
[1757494495810,0.38046206,112470.0,112460.0,0.22033092]
[1757494496347,0.38046206,112470.0,112460.0,0.56977092]
[1757494496555,0.38046206,112470.0,112460.0,0.71817092]
[1757494497786,0.37543206,112470.0,112460.0,0.72033092]
[1757494498004,0.20454079,112470.0,112460.0,0.81520691]
[1757494498250,0.26454079,112470.0,112460.0,0.98609818]
[1757494498462,0.26454079,112470.0,112460.0,0.81520691]
[1757494498680,0.43543206,112470.0,112460.0,0.81520691]
[1757494498882,0.43543206,112470.0,112460.0,0.81224691]
[1757494499103,0.43543206,112470.0,112460.0,0.66384691]
[1757494499296,0.43543206,112470.0,112460.0,0.81224691]
[1757494499797,0.43543206,112470.0,112460.0,1.21224691]
[1757494500003,0.43543206,112470.0,112460.0,1.06384691]
[1757494500367,0.44046206,112470.0,112460.0,1.06168691]
[1757494500581,0.44046206,112470.0,112460.0,0.81008691]
[1757494501394,0.44046206,112470.0,112460.0,0.81224691]
[1757494501395,0.26957079,112470.0,112460.0,0.81224691]
[1757494501592,0.44046206,112470.0,112460.0,0.81224691]
[1757494501801,0.43848206,112470.0,112460.0,0.81224691]
[1757494502041,0.26454079,112470.0,112460.0,0.81224691]
[1757494502234,0.26454079,112470.0,112460.0,0.81520691]
[1757494502430,0.26454079,112470.0,112460.0,0.98609818]
[1757494503036,0.26454079,112470.0,112460.0,0.81520691]
[1757494503262,0.26454079,112470.0,112460.0,0.98609818]
[1757494505853,0.26454079,112470.0,112460.0,1.38609818]
[1757494509025,0.26454079,112470.0,112460.0,1.65479818]
[1757494509455,0.0867156,112470.0,112460.0,1.7530073]
[1757494509679,0.0867156,112470.0,112460.0,1.77762704]
[1757494509810,0.17782292,112480.0,112460.0,1.8575887]
[1757494510016,0.17782292,112480.0,112470.0,0.41639007]
[1757494510219,0.17782292,112480.0,112470.0,0.41632726]
[1757494510650,0.17782292,112480.0,112470.0,0.81632726]
[1757494511539,0.23782292,112480.0,112470.0,0.81632726]
[1757494512477,0.23782292,112480.0,112470.0,0.81336726]
[1757494515005,0.23782292,112480.0,112470.0,1.08206726]
[1757494516401,0.23782292,112480.0,112470.0,1.02511447]
[1757494517771,0.23782292,112480.0,112470.0,1.02814447]
[1757494529547,0.23782292,112480.0,112470.0,1.03014447]
[1757494530149,0.23782292,112480.0,112470.0,1.04781447]
[1757494530458,0.23782292,112480.0,112470.0,1.07294105]
[1757494530696,0.23782292,112480.0,112470.0,1.07394105]
[1757494532632,0.23782292,112480.0,112470.0,0.76880599]
[1757494532853,0.23782292,112480.0,112470.0,1.04891447]
[1757494533078,0.23782292,112480.0,112470.0,1.03110447]
[1757494533727,0.23782292,112480.0,112470.0,0.91716599]
[1757494533939,0.23782292,112480.0,112470.0,1.03110447]
[1757494538135,0.23782292,112480.0,112470.0,1.11106613]
[1757494540401,0.23782292,112480.0,112470.0,1.4204998]
[1757494540569,0.06,112480.0,112470.0,1.44562638]
[1757494540972,0.23780938,112480.0,112470.0,1.44562638]
[1757494548206,0.06,112480.0,112470.0,1.44562638]
[1757494550398,0.23780938,112480.0,112470.0,1.44562638]
[1757494551344,0.23780938,112480.0,112470.0,1.15386271]
[1757494552884,0.23780938,112480.0,112470.0,1.17163271]
[1757494553023,0.23780938,112480.0,112470.0,1.3316479]
[1757494553707,0.06,112480.0,112470.0,1.44558638]
[1757494554256,0.23780938,112480.0,112470.0,1.44558638]
[1757494554997,0.06,112480.0,112470.0,1.44558638]
[1757494555198,0.18676549,112490.0,112470.0,1.36562472]
[1757494555421,0.18676549,112490.0,112480.0,0.47915365]
[1757494555635,0.18676549,112490.0,112480.0,0.56884703]
[1757494555853,0.18676549,112490.0,112480.0,0.74868641]
[1757494556072,0.18676549,112490.0,112480.0,1.17381299]
[1757494556509,0.18676549,112490.0,112480.0,1.44251299]
[1757494558879,8.224e-05,112490.0,112480.0,1.44251299]
[1757494559110,8.224e-05,112490.0,112480.0,1.36247891]
[1757494559304,8.224e-05,112490.0,112480.0,1.4424534]
[1757494561826,8.224e-05,112490.0,112480.0,1.2941334]
[1757494562054,8.224e-05,112490.0,112480.0,1.4424534]
[1757494562693,8.224e-05,112490.0,112480.0,1.51023154]
[1757494563114,8.224e-05,112490.0,112480.0,1.51123154]
[1757494563835,8.224e-05,112490.0,112480.0,1.51023154]
[1757494564326,8.224e-05,112490.0,112480.0,1.51223154]
[1757494564817,8.224e-05,112490.0,112480.0,1.51423154]
[1757494568717,8.224e-05,112490.0,112480.0,1.67817002]
[1757494568948,8.224e-05,112490.0,112480.0,1.59819553]
[1757494569151,2.009e-05,112490.0,112480.0,1.59819553]
[1757494569365,2.009e-05,112490.0,112480.0,1.70854934]
[1757494569744,2.009e-05,112490.0,112480.0,1.73525162]
[1757494573505,2.009e-05,112490.0,112480.0,1.73025162]
[1757494573714,2.009e-05,112490.0,112480.0,2.07525162]
[1757494574294,0.17219048,112510.0,112490.0,0.44646548]
[1757494574490,0.17265322,112510.0,112500.0,0.60759072]
[1757494574668,0.17265322,112510.0,112500.0,0.6053685]
[1757494574907,0.17265322,112510.0,112500.0,1.0053685]
[1757494575624,0.17265322,112510.0,112500.0,1.03049508]
[1757494575854,0.17265322,112510.0,112500.0,1.03935049]
[1757494577981,0.17365322,112510.0,112500.0,1.03935049]
[1757494578394,0.17365322,112510.0,112500.0,1.15306485]
[1757494580138,0.17365322,112510.0,112500.0,1.42174476]
[1757494582601,0.17365322,112510.0,112500.0,1.59952253]
[1757494583438,0.17365322,112510.0,112500.0,1.42174476]
[1757494584270,0.17365322,112510.0,112500.0,1.35782921]
[1757494585440,0.17365322,112510.0,112500.0,1.20954921]
[1757494585638,0.17365322,112510.0,112500.0,1.35778921]
[1757494589165,0.17365322,112510.0,112500.0,1.20660921]
[1757494589459,0.17857322,112510.0,112500.0,1.35484921]
[1757494589620,0.17857322,112510.0,112500.0,1.18405355]
[1757494591206,0.17365322,112510.0,112500.0,1.35484921]
[1757494591778,0.17857322,112510.0,112500.0,1.35484921]
[1757494592578,0.17365322,112510.0,112500.0,1.35484921]
[1757494592817,0.17563322,112510.0,112500.0,1.35484921]
[1757494593003,0.17365322,112510.0,112500.0,1.35484921]
[1757494595034,0.17365322,112510.0,112500.0,1.35778921]
[1757494595283,0.17365322,112510.0,112500.0,1.01619789]
[1757494595473,0.17365322,112510.0,112500.0,1.43768365]
[1757494596285,0.17265322,112510.0,112500.0,1.43768365]
[1757494596804,0.17265322,112510.0,112500.0,1.43868365]
[1757494597653,0.1871128,112510.0,112500.0,1.61746142]
[1757494597858,0.1871128,112510.0,112500.0,1.63513142]
[1757494598572,0.1871128,112510.0,112500.0,1.43968365]
[1757494599537,0.1871128,112510.0,112500.0,1.09809233]
[1757494599752,0.1871128,112510.0,112500.0,1.09511233]
[1757494599960,0.1871128,112510.0,112500.0,1.43670365]
[1757494600652,0.1920328,112510.0,112500.0,1.43670365]
[1757494601377,0.1871128,112510.0,112500.0,1.43670365]
[1757494604260,0.1871128,112510.0,112500.0,1.43969365]
[1757494604666,0.1871128,112510.0,112500.0,1.61747142]
[1757494608030,0.1871128,112510.0,112500.0,1.61448142]
[1757494608615,0.1871128,112510.0,112500.0,1.59548142]
[1757494610001,0.1871128,112510.0,112500.0,1.59847142]
[1757494617179,0.21295388,112550.0,112520.0,0.17773402]
[1757494617393,0.21295388,112550.0,112540.0,0.40555769]
[1757494617394,0.18975388,112550.0,112540.0,0.40555769]
[1757494617604,0.19198613,112550.0,112540.0,0.47697802]
[1757494617817,0.19198613,112550.0,112540.0,0.87697802]
[1757494620045,0.19198613,112550.0,112540.0,0.94327459]
[1757494620251,0.19198613,112550.0,112540.0,1.11407025]
[1757494620878,0.19598613,112550.0,112540.0,1.11407025]
[1757494622344,0.19598613,112550.0,112540.0,1.05010388]
[1757494624014,0.19198613,112550.0,112540.0,1.05010388]
[1757494624610,0.19298613,112550.0,112540.0,1.05010388]
[1757494625058,0.18777613,112550.0,112540.0,1.05010388]
[1757494625232,0.19298613,112550.0,112540.0,0.87926822]
[1757494626893,0.19298613,112550.0,112540.0,0.73114822]
[1757494627095,0.19298613,112550.0,112540.0,0.87926822]
[1757494627711,0.19298613,112550.0,112540.0,1.14794813]
[1757494627920,0.19198613,112550.0,112540.0,1.31874379]
[1757494628867,0.19298613,112550.0,112540.0,1.31874379]
[1757494629293,0.19298613,112550.0,112540.0,1.14794813]
[1757494629512,0.19198613,112550.0,112540.0,1.14794813]
[1757494629719,0.19198613,112550.0,112540.0,1.14894813]
[1757494629929,0.19198613,112550.0,112540.0,0.97815247]
[1757494630140,0.19198613,112550.0,112540.0,1.31974379]
[1757494631815,0.18983613,112550.0,112540.0,1.31974379]
[1757494632025,0.18677613,112550.0,112540.0,1.32277379]
[1757494632230,0.18677613,112550.0,112540.0,1.31974379]
[1757494633595,0.19173613,112550.0,112540.0,1.31974379]
[1757494635550,0.19173613,112550.0,112540.0,0.97815247]
[1757494635760,0.18677613,112550.0,112540.0,1.14894813]
[1757494637632,0.19173613,112550.0,112540.0,1.14894813]
[1757494637862,0.18677613,112550.0,112540.0,1.14894813]
[1757494638049,0.19173613,112550.0,112540.0,0.97815247]
[1757494638634,0.19173613,112550.0,112540.0,1.14894813]
[1757494639785,0.18677613,112550.0,112540.0,1.14894813]
[1757494640395,0.18677613,112550.0,112540.0,0.97815247]
[1757494640616,0.18975613,112550.0,112540.0,0.97815247]
[1757494641067,0.19173613,112550.0,112540.0,0.97815247]
[1757494643351,0.19173613,112550.0,112540.0,1.04211884]
[1757494643587,0.19173613,112550.0,112540.0,1.04207884]
[1757494644606,0.30554457,112550.0,112540.0,1.04207884]
[1757494647016,0.18677613,112550.0,112540.0,1.04207884]
[1757494647146,0.30554457,112550.0,112540.0,1.04207884]
[1757494647734,0.3055592,112550.0,112540.0,1.04207884]
[1757494648244,0.3055592,112550.0,112540.0,0.97811247]
[1757494648657,0.3055592,112550.0,112540.0,1.04215045]
[1757494649187,0.3055592,112550.0,112540.0,0.97811247]
[1757494650107,0.3005992,112550.0,112540.0,0.97811247]
[1757494650274,0.3025792,112550.0,112540.0,0.97811247]
[1757494650485,0.3055592,112550.0,112540.0,0.97811247]
[1757494651935,0.3305292,112550.0,112540.0,0.82789247]
[1757494652081,0.44435227,112550.0,112540.0,0.89193153]
[1757494652290,0.3305292,112550.0,112540.0,1.03997153]
[1757494652490,0.3305292,112550.0,112540.0,0.77129162]
[1757494653150,0.3305292,112550.0,112540.0,0.62325162]
[1757494653417,0.44435227,112550.0,112540.0,0.15695505]
[1757494653592,0.44435227,112550.0,112540.0,0.30499505]
[1757494654945,0.3305292,112550.0,112540.0,0.30499505]
[1757494655355,0.21670613,112550.0,112540.0,0.30499505]
[1757494655557,0.3305292,112550.0,112540.0,0.30499505]
[1757494656012,0.3305292,112550.0,112540.0,0.15695505]
[1757494656211,0.3305292,112550.0,112540.0,0.30499505]
[1757494662689,0.33054944,112550.0,112540.0,0.30499505]
[1757494666508,0.21670613,112550.0,112540.0,0.30499505]
[1757494666695,0.33054944,112550.0,112540.0,0.30499505]
[1757494672833,0.21670613,112550.0,112540.0,0.30499505]
[1757494673042,0.33054944,112550.0,112540.0,0.30499505]
[1757494673651,0.33054944,112550.0,112540.0,0.21307906]
[1757494673805,0.33054944,112550.0,112540.0,0.14904]
[1757494675788,0.44439275,112550.0,112540.0,0.14904]
[1757494675999,0.33054944,112550.0,112540.0,0.14904]
[1757494677939,0.21670613,112550.0,112540.0,0.14904]
[1757494678147,0.33054944,112550.0,112540.0,0.14904]
[1757494678824,0.21670613,112550.0,112540.0,0.14904]
[1757494679033,0.33054944,112550.0,112540.0,0.14904]
[1757494680211,0.21670613,112550.0,112540.0,0.14904]
[1757494680574,0.33054944,112550.0,112540.0,0.14904]
[1757494683922,0.35724716,112550.0,112540.0,0.14904]
[1757494685067,0.47109047,112550.0,112540.0,0.14904]
[1757494685497,0.35724716,112550.0,112540.0,0.14904]
[1757494685634,0.35724716,112550.0,112540.0,0.001]
[1757494685851,0.49691213,112550.0,112540.0,0.14904]
[1757494686068,0.47109047,112550.0,112540.0,0.14904]
[1757494687172,0.47109047,112550.0,112540.0,0.14804]
[1757494688005,0.47209047,112550.0,112540.0,0.14804]
[1757494690061,0.47509047,112550.0,112540.0,0.14804]
[1757494691304,0.81509047,112550.0,112540.0,0.14804]
[1757494693239,0.17771459,112540.0,112530.0,0.33699991]
[1757494693445,0.43193121,112540.0,112530.0,0.48503991]
[1757494693594,0.43401121,112540.0,112530.0,0.48503991]
[1757494694028,0.46071109,112540.0,112530.0,0.48503991]
[1757494695053,0.46171109,112540.0,112530.0,0.48503991]
[1757494698935,0.46171109,112540.0,112530.0,0.21636]
[1757494700661,0.46171109,112540.0,112530.0,0.06832]
[1757494700873,0.46171109,112540.0,112530.0,0.21636]
[1757494701378,0.46171109,112540.0,112530.0,0.06832]
[1757494701603,0.47059681,112540.0,112530.0,0.14804]
[1757494701806,0.81059681,112540.0,112530.0,0.14804]
[1757494702421,0.92455733,112540.0,112530.0,0.14804]
[1757494714351,0.58291019,112540.0,112530.0,0.14804]
[1757494714583,0.92455733,112540.0,112530.0,0.14804]
[1757494722438,0.58291019,112540.0,112530.0,0.14804]
[1757494722583,0.92455733,112540.0,112530.0,0.14804]
[1757494723014,0.58291019,112540.0,112530.0,0.14804]
[1757494723314,0.92455733,112540.0,112530.0,0.14804]
[1757494726222,0.38512376,112540.0,112530.0,0.15021]
[1757494726443,0.38512376,112540.0,112530.0,0.24212599]
[1757494726605,0.38512376,112540.0,112530.0,0.09408599]
[1757494726801,0.55594733,112540.0,112530.0,0.24208599]
[1757494727006,0.56133733,112540.0,112530.0,0.24208599]
[1757494728444,0.56133733,112540.0,112530.0,0.51078599]
[1757494729703,0.56133733,112540.0,112530.0,0.36278599]
[1757494729910,0.56133733,112540.0,112530.0,0.51078599]
[1757494731698,0.56133733,112540.0,112530.0,0.36061599]
[1757494731904,0.56133733,112540.0,112530.0,0.50861599]
[1757494734410,0.56133733,112540.0,112530.0,0.36061599]
[1757494734613,0.56133733,112540.0,112530.0,0.50861599]
[1757494735372,0.58613733,112540.0,112530.0,0.2687]
[1757494735572,0.61143514,112540.0,112530.0,0.4167]
[1757494736650,0.58613733,112540.0,112530.0,0.4167]
[1757494740230,0.24449019,112540.0,112530.0,0.4167]